bitfinex/quotes_ETHUSD_20250424
["timestamp","ask_amount","ask_price","bid_price","bid_amount"]
[1745520972260,9.22055451,1764.1,1763.5,0.794]
[1745520972582,5.66810306,1764.3,1763.7,0.794]
[1745520972785,5.96371557,1764.4,1763.8,0.794]
[1745520972786,6.37857244,1764.4,1763.8,0.794]
[1745520972987,5.66817142,1764.3,1763.8,0.794]
[1745520973793,11.33640865,1764.3,1763.8,0.794]
[1745520974089,12.84112556,1764.3,1763.8,0.794]
[1745520974408,5.66870672,1764.1,1763.8,0.794]
[1745520974970,11.33758098,1764.1,1763.8,0.794]
[1745520975284,11.33758098,1764.1,1763.6,4.999]
[1745520975285,5.66879843,1764.1,1763.6,5.7887]
[1745520976810,5.669131,1764.0,1763.6,5.7887]
[1745520977122,5.66943152,1763.9,1763.6,5.7887]
[1745520977297,6.91021571,1764.0,1763.6,5.7887]
[1745520977913,12.57942589,1764.0,1763.6,5.7887]
[1745520978309,6.91021571,1764.0,1763.6,5.7887]
[1745520980581,1.24111533,1764.0,1763.6,5.7887]
[1745520980780,5.66880505,1764.1,1763.6,6.36757]
[1745520980981,5.66880505,1764.1,1763.7,0.7664]
[1745520981376,3.0,1764.1,1763.7,0.7664]
[1745520981581,5.6684288,1764.2,1763.7,0.7664]
[1745520982311,5.66868598,1764.1,1763.7,0.7664]
[1745520984137,7.17287009,1764.3,1763.7,0.57654]
[1745520984342,3.0,1764.3,1763.8,0.8169]
[1745520984623,11.38625318,1764.6,1763.9,5.66925111]
[1745520984835,5.66751064,1764.5,1764.1,0.8169]
[1745520985113,5.66797598,1764.3,1764.1,0.8169]
[1745520985415,5.66770237,1764.4,1764.1,0.8169]
[1745520987185,2.07899068,1764.5,1764.0,4.997]
[1745520987423,5.66826975,1764.3,1764.0,5.8102]
[1745520988420,7.74648457,1764.5,1764.0,5.8102]
[1745520988625,5.6676568,1764.4,1764.1,0.8239]
[1745520992089,5.6680602,1764.3,1764.1,0.8239]
[1745520992285,5.6680602,1764.3,1764.0,4.997]
[1745520992286,5.66861289,1764.1,1763.9,0.807]
[1745520992493,5.66861289,1764.1,1763.7,5.802]
[1745520992494,5.66925671,1763.9,1763.7,5.802]
[1745520992691,5.66925671,1763.9,1763.7,4.995]
[1745520993104,5.66957704,1763.8,1763.7,4.995]
[1745520993305,5.66925671,1763.9,1763.7,4.995]
[1745520993536,3.0,1764.1,1763.8,0.807]
[1745520993699,5.66862657,1764.1,1763.8,0.807]
[1745520994106,5.66895213,1764.0,1763.8,0.807]
[1745520995016,5.66945174,1763.9,1763.6,0.8001]
[1745520995802,12.4109326,1764.1,1763.6,0.8001]
[1745520996018,6.91020598,1764.0,1763.6,0.8001]
[1745520996324,12.5793731,1764.0,1763.6,0.8001]
[1745520996929,6.91020598,1764.0,1763.6,0.8001]
[1745520997305,1.24109326,1764.0,1763.6,0.8001]
[1745520997802,5.66875715,1764.1,1763.6,0.8001]
[1745520998308,5.66893749,1764.0,1763.6,0.8001]
[1745520999557,5.66875715,1764.1,1763.6,0.8001]
[1745521000327,11.33764037,1764.1,1763.6,0.8001]
[1745521000729,5.66875715,1764.1,1763.6,0.8001]
[1745521000945,0.56687572,1764.0,1763.6,0.8001]
[1745521002421,6.23587575,1764.0,1763.6,0.8001]
[1745521003643,0.56687572,1764.0,1763.6,0.8001]
[1745521004059,5.6684958,1764.2,1763.6,0.8001]
[1745521005066,5.66871016,1764.1,1763.6,0.8001]
[1745521006784,11.33709945,1764.2,1763.6,0.8001]
[1745521006952,5.6684958,1764.2,1763.6,0.8001]
[1745521007149,11.33705513,1764.2,1763.6,0.8001]
[1745521007362,1.13370551,1764.1,1763.6,0.8001]
[1745521007768,6.80244277,1764.1,1763.6,0.8001]
[1745521008438,5.6690813,1764.0,1763.6,0.8001]
[1745521008940,12.47128918,1764.1,1763.6,0.8001]
[1745521009144,5.66905127,1764.0,1763.6,0.8001]
[1745521009335,6.91620067,1764.0,1763.6,0.8001]
[1745521009881,1.2471494,1764.0,1763.6,0.8001]
[1745521010050,6.91612329,1764.0,1763.6,0.8001]
[1745521010366,1.2471494,1764.0,1763.6,0.8001]
[1745521010576,5.66845339,1764.2,1763.6,6.47031303]
[1745521010879,5.66845339,1764.2,1763.4,4.995]
[1745521010880,5.66845339,1764.2,1763.7,0.7667]
[1745521011076,9.74135315,1764.3,1763.7,0.7667]
[1745521011280,8.6680847,1764.3,1763.7,0.7667]
[1745521011662,14.33628792,1764.3,1763.7,0.7667]
[1745521011981,5.66829256,1764.2,1763.8,0.759]
[1745521013886,11.3368355,1764.2,1763.8,0.759]
[1745521014086,5.66829256,1764.2,1763.8,0.759]
[1745521015052,10.36207862,1764.3,1763.8,0.759]
[1745521015759,5.66829764,1764.2,1763.8,0.759]
[1745521016270,1.60303763,1764.2,1763.8,0.759]
[1745521017061,3.0,1764.3,1763.8,0.759]
[1745521017260,8.66806874,1764.3,1763.8,0.759]
[1745521017559,8.66806874,1764.3,1763.8,4.993]
[1745521017759,8.66806874,1764.3,1763.9,0.797]
[1745521018057,3.0,1764.3,1763.9,0.797]
[1745521019068,8.66798149,1764.3,1763.9,0.797]
[1745521019399,3.0,1764.3,1763.9,0.797]
[1745521019696,8.66798208,1764.3,1763.9,0.797]
[1745521021105,10.36188269,1764.3,1763.9,0.797]
[1745521021566,16.03011381,1764.3,1763.9,0.797]
[1745521021766,10.36188269,1764.3,1763.9,0.797]
[1745521023267,7.36188269,1764.3,1763.9,0.797]
[1745521026618,13.03012907,1764.3,1763.9,0.797]
[1745521026830,1.30301291,1764.2,1763.9,0.797]
[1745521027017,5.66798208,1764.3,1763.9,0.797]
[1745521029369,5.66893424,1764.0,1763.9,0.797]
[1745521029492,5.66876246,1764.1,1763.9,0.797]
[1745521029828,11.33765097,1764.1,1763.9,0.797]
[1745521030038,5.66893424,1764.0,1763.9,0.797]
[1745521030241,6.80270391,1764.0,1763.9,0.797]
[1745521030529,6.80270391,1764.0,1763.8,4.993]
[1745521030828,1.13376967,1764.0,1763.8,4.993]
[1745521030992,11.33761294,1764.1,1763.8,4.993]
[1745521031426,5.66876246,1764.1,1763.8,4.993]
[1745521031929,11.33766599,1764.1,1763.8,4.993]
[1745521032133,5.66914835,1764.0,1763.8,4.993]
[1745521032310,6.23626411,1763.9,1763.7,0.777]
[1745521033007,0.56691484,1763.9,1763.7,0.777]
[1745521038016,6.23628417,1763.9,1763.7,0.777]
[1745521038349,6.23628417,1763.9,1763.6,0.7607]
[1745521044071,6.28808417,1763.9,1763.6,0.7607]
[1745521046147,0.62880842,1763.8,1763.6,0.7607]
[1745521048196,6.29842216,1763.8,1763.6,0.7607]
[1745521048355,6.29842216,1763.8,1763.5,5.7767]
[1745521048653,6.29842216,1763.8,1763.5,4.993]
[1745521049462,6.29842216,1763.8,1763.5,5.7767]
[1745521049463,0.62880842,1763.8,1763.5,5.7767]
[1745521049665,5.72121496,1763.9,1763.5,5.7767]
[1745521051992,5.66959936,1763.8,1763.5,5.7767]
[1745521053152,5.72121496,1763.9,1763.5,5.7767]
[1745521055171,5.66961779,1763.8,1763.5,5.7767]
[1745521058108,7.71978367,1763.7,1762.9,0.57848]
[1745521058260,5.67022,1763.6,1763.3,0.789]
[1745521060787,7.51846355,1763.7,1763.3,0.789]
[1745521061695,13.18861042,1763.7,1763.3,0.789]
[1745521063101,5.67025723,1763.6,1763.3,0.789]
[1745521072718,13.18859504,1763.7,1763.3,0.789]
[1745521072899,0.71333168,1764.0,1763.5,0.7634]
[1745521073095,6.38241898,1764.0,1763.5,0.7634]
[1745521073403,12.05160093,1764.0,1763.5,0.7634]
[1745521074502,11.63416432,1764.0,1763.5,0.7634]
[1745521075301,5.66927486,1763.9,1763.5,0.7634]
[1745521075613,11.6341765,1764.0,1763.5,0.7634]
[1745521075795,5.66829532,1764.2,1763.7,0.8112]
[1745521075978,7.15711557,1764.2,1763.7,0.8112]
[1745521078309,5.66809285,1764.3,1763.7,0.8112]
[1745521079511,10.97831899,1764.4,1763.8,0.7875]
[1745521079712,16.64627074,1764.4,1763.8,0.7875]
[1745521080514,1.12818214,1764.2,1763.8,0.7875]
[1745521080716,1.12818214,1764.2,1763.6,4.991]
[1745521080717,6.74544636,1764.0,1763.6,5.7937]
[1745521081026,7.9868686,1764.0,1763.6,5.7937]
[1745521082817,5.66877605,1764.1,1763.6,5.7937]
[1745521082983,5.66908634,1764.0,1763.6,5.7937]
[1745521084814,11.33827878,1764.0,1763.6,5.7937]
[1745521085018,5.66908634,1764.0,1763.6,5.7937]
[1745521085624,5.66944631,1763.9,1763.6,5.7937]
[1745521085818,6.2367153,1763.8,1763.6,5.7937]
[1745521086122,0.56694463,1763.8,1763.6,5.7937]
[1745521086821,5.66944631,1763.9,1763.6,5.7937]
[1745521087191,6.74551883,1764.0,1763.7,0.8179]
[1745521087519,5.66913669,1764.0,1763.7,0.8179]
[1745521091830,11.33830911,1764.0,1763.7,0.8179]
[1745521092035,6.08371061,1764.0,1763.7,0.8179]
[1745521092335,5.66929969,1763.9,1763.7,0.8179]
[1745521092723,6.57750775,1764.0,1763.7,0.8179]
[1745521094541,12.24675026,1764.0,1763.7,0.8179]
[1745521095734,6.57750775,1764.0,1763.7,0.8179]
[1745521096984,12.2467036,1764.0,1763.7,0.8179]
[1745521097157,5.66927843,1763.9,1763.7,0.8179]
[1745521098658,7.09889416,1763.9,1763.7,0.8179]
[1745521099160,0.90837106,1764.0,1763.7,0.8252]
[1745521099466,5.66874785,1764.1,1763.7,0.8252]
[1745521099668,11.33761713,1764.1,1763.7,0.8252]
[1745521099871,5.66874785,1764.1,1763.7,0.8252]
[1745521100041,11.3376133,1764.1,1763.7,0.8252]
[1745521100248,5.66874785,1764.1,1763.7,0.8252]
[1745521100817,7.71811901,1764.1,1763.7,0.8252]
[1745521101308,5.66902944,1764.0,1763.7,0.8252]
[1745521103701,9.05677914,1764.1,1763.7,0.8252]
[1745521103903,0.29585679,1764.3,1763.9,0.8315]
[1745521104065,5.66793022,1764.4,1763.9,0.8315]
[1745521104272,8.66797908,1764.3,1763.9,0.8315]
[1745521104891,14.33618643,1764.3,1763.9,0.8315]
[1745521105066,7.30653484,1764.3,1763.9,0.8315]
[1745521106171,9.355906,1764.3,1763.9,0.8315]
[1745521107100,2.04937116,1764.2,1763.9,0.8315]
[1745521107308,8.38220442,1764.3,1763.9,0.8315]
[1745521107470,14.05049288,1764.3,1763.9,0.8315]
[1745521107671,14.05043968,1764.3,1763.9,0.8315]
[1745521108203,8.38220442,1764.3,1763.9,0.8315]
[1745521111372,6.74364866,1764.3,1763.9,0.8315]
[1745521112288,6.74364866,1764.3,1763.8,4.982]
[1745521113817,3.0,1764.3,1763.8,4.982]
[1745521113977,7.1769196,1764.5,1763.8,10.65140257]
[1745521114177,3.71769196,1764.4,1763.8,11.71654283]
[1745521114378,3.0,1764.4,1763.8,17.38593666]
[1745521114676,3.0,1764.4,1763.8,11.71653409]
[1745521115211,8.66771548,1764.4,1763.8,11.71653409]
[1745521115412,8.66771548,1764.4,1763.9,0.7563]
[1745521117512,8.66771548,1764.4,1763.7,0.764]
[1745521117513,6.74444494,1764.1,1763.7,0.764]
[1745521118416,8.36081417,1764.1,1763.7,0.764]
[1745521118593,2.69203881,1764.1,1763.7,0.764]
[1745521118793,1.07566958,1764.1,1763.7,0.764]
[1745521120717,12.41207404,1764.3,1763.7,0.764]
[1745521120905,12.41207871,1764.3,1763.7,0.764]
[1745521121107,6.74383539,1764.3,1763.7,0.764]
[1745521121814,0.2954599,1764.2,1763.7,0.764]
[1745521122022,0.2954599,1764.2,1763.8,0.7676]
[1745521127729,0.2954599,1764.2,1763.9,6.44334202]
[1745521127924,0.2954599,1764.2,1764.1,0.7743]
[1745521130548,0.2954599,1764.2,1763.9,4.982]
[1745521130748,0.2954599,1764.2,1763.9,5.7482]
[1745521130949,1.29939033,1764.2,1763.9,5.7482]
[1745521131243,4.07566958,1764.1,1763.7,0.7665]
[1745521131414,9.74439379,1764.1,1763.7,0.7665]
[1745521133151,3.0,1764.1,1763.7,0.7665]
[1745521133511,8.66866257,1764.1,1763.7,0.7665]
[1745521133712,0.86686626,1764.0,1763.7,0.7665]
[1745521133956,10.55127691,1764.1,1763.7,0.7665]
[1745521135345,4.88246958,1764.1,1763.7,0.7665]
[1745521135646,3.8068,1764.1,1763.7,0.7665]
[1745521135850,3.0,1764.1,1763.7,0.7665]
[1745521136847,4.29939033,1764.2,1763.7,0.7665]
[1745521137047,0.42993903,1764.1,1763.7,0.7665]
[1745521137214,1.50560861,1764.1,1763.7,0.7665]
[1745521138216,7.17430087,1764.1,1763.7,0.7665]
[1745521138552,1.50560861,1764.1,1763.7,0.7665]
[1745521138742,0.42993903,1764.1,1763.7,0.7665]
[1745521139514,0.803,1764.0,1763.6,4.981]
[1745521139719,0.803,1764.0,1763.2,1.07566958]
[1745521139720,1.07566958,1763.9,1763.4,0.768]
[1745521139962,1.83044765,1763.9,1763.4,0.768]
[1745521140423,7.49975691,1763.9,1763.4,0.768]
[1745521140618,1.83044765,1763.9,1763.4,0.768]
[1745521140820,3.803,1764.0,1763.4,0.768]
[1745521141117,3.803,1764.0,1763.4,5.67070172]
[1745521141351,3.803,1764.0,1763.6,0.768]
[1745521143725,3.0,1764.0,1763.6,0.768]
[1745521144125,6.09857242,1764.1,1763.6,0.768]
[1745521144126,0.42993903,1764.1,1763.6,0.768]
[1745521144358,6.47148481,1764.2,1763.6,6.43821354]
[1745521144533,7.83606796,1764.2,1763.6,7.64906935]
[1745521144729,7.83606796,1764.2,1763.6,0.768]
[1745521144934,13.50463597,1764.2,1763.6,0.768]
[1745521145426,13.50463683,1764.2,1763.6,0.768]
[1745521145623,7.83606796,1764.2,1763.6,0.768]
[1745521146464,13.50459576,1764.2,1763.6,0.768]
[1745521146628,1.35045958,1764.1,1763.6,0.768]
[1745521146828,1.35045958,1764.1,1763.6,6.43819657]
[1745521147739,1.35045958,1764.1,1763.6,11.41619657]
[1745521148470,1.35045958,1764.1,1763.6,11.41602597]
[1745521148665,10.83588082,1764.2,1763.6,11.41602597]
[1745521149494,5.16758315,1764.2,1763.6,10.64802066]
[1745521149759,5.16758315,1764.2,1763.8,0.7885]
[1745521151744,0.29549731,1764.1,1763.8,0.7885]
[1745521157655,0.29549731,1764.1,1763.8,6.45796007]
[1745521157879,0.29549731,1764.1,1763.9,0.64579601]
[1745521158850,0.29549731,1764.1,1763.8,6.45796007]
[1745521159350,0.29549731,1764.1,1763.8,0.7885]
[1745521160484,0.29549731,1764.1,1763.8,6.45798446]
[1745521162698,2.16166689,1764.1,1763.5,5.67033535]
[1745521162875,3.0,1764.0,1763.5,0.8065]
[1745521163066,3.0,1764.0,1763.5,7.62228043]
[1745521164161,3.0,1764.0,1763.5,1.95191643]
[1745521164695,3.0,1764.0,1763.5,7.6223599]
[1745521164892,3.0,1764.0,1763.5,1.95191643]
[1745521165085,3.0,1764.0,1763.5,7.6223544]
[1745521165287,3.51616669,1764.0,1763.5,7.6223544]
[1745521165581,3.51616669,1764.0,1763.5,1.95191643]
[1745521166159,3.51616669,1764.0,1763.5,7.62242993]
[1745521166762,0.29549731,1764.1,1763.8,0.8143]
[1745521169312,1.12359731,1764.1,1763.6,0.8143]
[1745521169810,0.29549731,1764.1,1763.7,0.77]
[1745521170117,0.29549731,1764.1,1763.7,6.43984125]
[1745521170271,0.29549731,1764.1,1763.7,7.65082507]
[1745521170613,0.29549731,1764.1,1763.7,12.62382507]
[1745521171008,0.29549731,1764.1,1763.7,12.62366551]
[1745521171194,0.29549731,1764.1,1763.8,5.66951898]
[1745521171381,0.29549731,1764.1,1763.7,12.62366551]
[1745521171579,0.29549731,1764.1,1763.7,18.29336821]
[1745521171798,0.29549731,1764.1,1763.8,1.26236655]
[1745521172167,0.29549731,1764.1,1763.7,11.41268169]
[1745521174864,0.29549731,1764.1,1763.9,5.66904131]
[1745521175071,0.29549731,1764.1,1763.9,0.7909]
[1745521175381,0.29549731,1764.1,1763.9,6.46001524]
[1745521178622,0.29549731,1764.1,1763.9,6.45993838]
[1745521178824,0.29549731,1764.1,1764.0,6.31492808]
[1745521179117,0.29549731,1764.1,1764.0,0.64599384]
[1745521179481,0.29549731,1764.1,1763.9,6.45993838]
[1745521179719,0.29549731,1764.1,1764.0,5.66893424]
[1745521186331,0.29549731,1764.1,1763.8,4.973]
[1745521186895,1.07566958,1764.0,1763.8,4.973]
[1745521187099,0.7878,1763.9,1763.8,4.973]
[1745521187821,1.08329052,1763.9,1763.8,4.973]
[1745521188528,1.08329052,1763.9,1763.5,4.973]
[1745521189191,2.43301709,1763.9,1763.5,4.973]
[1745521190936,1.08329052,1763.9,1763.5,4.973]
[1745521195054,1.07566958,1763.6,1763.2,5.8023]
[1745521195922,0.8327,1763.7,1763.2,5.8023]
[1745521197068,0.8327,1763.7,1763.2,11.47377687]
[1745521197241,0.8327,1763.7,1763.3,1.14737769]
[1745521200162,0.79426,1763.7,1763.3,1.14737769]
[1745521200524,0.79426,1763.7,1763.4,5.67085359]
[1745521200847,0.29549052,1763.9,1763.5,5.67030748]
[1745521201050,0.29549052,1763.9,1763.6,5.67020237]
[1745521201231,0.29549052,1763.9,1763.7,6.9942773]
[1745521201432,0.29549052,1763.9,1763.7,1.32452024]
[1745521202123,0.29549052,1763.9,1763.7,0.56702024]
[1745521202645,0.29549052,1763.9,1763.7,6.29340647]
[1745521202963,0.29549052,1763.9,1763.8,7.51084662]
[1745521203137,0.29549052,1763.9,1763.8,8.89127137]
[1745521204063,0.29549052,1763.9,1763.8,8.94795604]
[1745521204266,0.29549052,1763.9,1763.8,8.89127137]
[1745521204471,0.29549052,1763.9,1763.8,8.9479561]
[1745521204766,0.7949,1764.7,1764.2,0.7574]
[1745521205063,0.7949,1764.7,1764.2,5.61258279]
[1745521205064,0.29523142,1764.4,1764.2,5.61258279]
[1745521205267,3.7949,1764.7,1764.2,5.61258279]
[1745521205569,0.29524582,1764.6,1764.2,5.61258279]
[1745521206262,0.8249,1764.5,1764.2,4.97]
[1745521212183,1.90056958,1764.5,1763.9,5.7432]
[1745521212466,0.7513,1764.1,1763.9,4.969]
[1745521212669,0.7513,1764.1,1763.6,4.969]
[1745521212966,0.7513,1764.1,1763.7,0.4969]
[1745521213341,6.42008986,1764.1,1763.6,4.969]
[1745521213545,6.42069839,1763.9,1763.3,4.969]
[1745521213845,7.49636797,1763.9,1763.3,4.969]
[1745521214074,7.49636797,1763.9,1763.4,0.4969]
[1745521214376,5.66973504,1763.8,1763.3,4.969]
[1745521214699,7.49708735,1763.7,1763.3,4.969]
[1745521214830,6.42141777,1763.7,1763.3,4.969]
[1745521215031,0.7513,1763.7,1763.3,4.969]
[1745521215275,0.7763,1763.9,1763.5,5.6705263]
[1745521215440,3.7763,1764.1,1763.6,0.56705263]
[1745521215642,9.44492098,1764.1,1763.6,0.56705263]
[1745521215841,5.66893424,1764.0,1763.4,0.765]
[1745521216570,5.66927378,1763.9,1763.4,0.765]
[1745521217339,5.66893424,1764.0,1763.4,0.765]
[1745521217541,5.66893424,1764.0,1763.5,4.969]
[1745521217873,3.0,1764.2,1763.7,6.42557047]
[1745521218071,3.0,1764.2,1763.9,0.7558]
[1745521218369,3.0,1764.3,1763.9,0.7558]
[1745521218559,5.66764905,1764.4,1763.9,0.7558]
[1745521220270,11.33560942,1764.4,1763.9,0.7558]
[1745521220470,5.66764905,1764.4,1763.9,0.7558]
[1745521220673,2.59236697,1764.4,1763.9,0.7558]
[1745521220875,2.59236697,1764.4,1763.5,4.969]
[1745521220876,5.66899951,1764.0,1763.5,4.969]
[1745521221083,5.66874868,1764.1,1763.5,5.7316]
[1745521221382,5.66893877,1764.0,1763.5,5.7316]
[1745521221878,5.66874868,1764.1,1763.5,5.7316]
[1745521222380,3.0,1764.1,1763.5,11.40193307]
[1745521222555,5.66895857,1764.0,1763.6,1.14019331]
[1745521222756,6.48284784,1763.9,1763.5,5.7316]
[1745521223151,0.8135,1763.9,1763.5,5.7316]
[1745521223481,6.48288329,1763.9,1763.5,5.7316]
[1745521223844,5.67016087,1763.7,1763.3,0.7603]
[1745521224375,6.7454065,1763.8,1763.3,0.7603]
[1745521224588,0.67454065,1763.7,1763.3,0.7603]
[1745521224766,0.29553366,1763.7,1763.3,6.43138132]
[1745521224958,0.29553366,1763.7,1763.3,0.7603]
[1745521225281,0.29553366,1763.7,1763.3,6.43128008]
[1745521225782,0.29553366,1763.7,1763.5,5.67039116]
[1745521226479,0.29553366,1763.7,1763.6,0.7583]
[1745521226648,0.29553366,1763.7,1763.6,1.40116912]
[1745521228376,0.29553366,1763.7,1763.6,0.7583]
[1745521229159,0.29553366,1763.7,1763.4,6.48933795]
[1745521230486,0.29553366,1763.7,1763.4,12.16003468]
[1745521230889,0.29553366,1763.7,1763.4,6.48933795]
[1745521231183,0.29553366,1763.7,1763.4,12.15998504]
[1745521231589,0.29553366,1763.7,1763.4,6.48933231]
[1745521231765,0.29553366,1763.7,1763.5,0.64893323]
[1745521233488,0.29553366,1763.7,1763.6,6.49432]
[1745521233964,0.29553366,1763.7,1763.6,11.48501614]
[1745521234163,0.29553366,1763.7,1763.6,11.42832]
[1745521237203,0.29553366,1763.7,1763.6,4.966]
[1745521237756,0.29553366,1763.7,1763.4,0.7921]
[1745521237964,6.74997081,1763.7,1763.3,4.966]
[1745521238259,0.67499708,1763.6,1763.1,0.8132]
[1745521238802,0.67499708,1763.6,1763.1,6.48485345]
[1745521238991,6.34529325,1763.6,1763.1,0.8132]
[1745521239557,0.67499708,1763.6,1763.1,6.48498213]
[1745521239962,0.67499708,1763.6,1763.1,0.8132]
[1745521240488,0.67499708,1763.6,1763.1,6.48502755]
[1745521240900,0.67499708,1763.6,1763.1,7.70054879]
[1745521241106,1.08003366,1763.7,1763.2,5.67138837]
[1745521242287,1.08003366,1763.7,1763.2,11.39926667]
[1745521242587,1.08003366,1763.7,1763.2,11.34255548]
[1745521243099,1.08003366,1763.7,1763.2,5.67127183]
[1745521244664,1.08003366,1763.7,1763.3,5.67109393]
[1745521245366,0.29553366,1763.7,1763.4,6.43907184]
[1745521245907,0.29553366,1763.7,1763.5,5.67051969]
[1745521246100,0.29553366,1763.7,1763.5,11.34093941]
[1745521246265,0.29553366,1763.7,1763.5,5.67041972]
[1745521246465,0.29553366,1763.7,1763.4,6.43903264]
[1745521246793,0.29553366,1763.7,1763.5,6.31439561]
[1745521247181,0.29553366,1763.7,1763.5,0.64390326]
[1745521249318,0.29553366,1763.7,1763.5,6.314422]
[1745521249800,0.29553366,1763.7,1763.6,5.67022]
[1745521250202,0.29553366,1763.7,1763.5,6.31423849]
[1745521250504,0.29553366,1763.7,1763.6,0.63142385]
[1745521252181,0.29553366,1763.7,1763.6,6.30164385]
[1745521253080,0.29553366,1763.7,1763.6,7.09974385]
[1745521261593,0.29553366,1763.7,1763.5,0.64390326]
[1745521261925,0.29553366,1763.7,1763.4,6.44614568]
[1745521262164,0.29553366,1763.7,1763.4,6.44604029]
[1745521262421,0.29553366,1763.7,1763.5,5.67038624]
[1745521262836,0.29553366,1763.7,1763.5,11.34072742]
[1745521263124,0.29553366,1763.7,1763.6,1.13407274]
[1745521263324,0.29553366,1763.7,1763.5,5.67034118]
[1745521264293,0.29553366,1763.7,1763.3,4.967]
[1745521264483,0.7709,1763.6,1763.3,4.967]
[1745521265186,0.29557195,1763.5,1763.3,4.967]
[1745521265828,0.29557195,1763.5,1763.3,10.63808727]
[1745521266051,0.29557195,1763.5,1763.4,1.06380873]
[1745521266469,0.29557195,1763.5,1763.4,7.55237183]
[1745521266971,0.29557195,1763.5,1763.4,1.88150873]
[1745521268454,0.29557195,1763.5,1763.3,10.63795757]
[1745521269143,0.29557195,1763.5,1763.3,4.967]
[1745521269347,1.07407195,1763.5,1763.3,4.967]
[1745521271358,0.29557195,1763.5,1763.3,4.967]
[1745521275227,0.8021,1763.4,1763.3,4.967]
[1745521277628,3.8021,1763.4,1763.1,4.964]
[1745521277827,0.38021,1763.3,1763.1,4.964]
[1745521278068,0.769,1763.2,1763.1,4.964]
[1745521278573,0.769,1763.2,1762.8,4.964]
[1745521278777,6.44050692,1763.2,1762.8,4.964]
[1745521278936,0.769,1763.2,1762.8,4.964]
[1745521279478,0.769,1763.2,1762.8,13.4444628]
[1745521280547,0.769,1763.2,1762.8,7.77178153]
[1745521282081,0.769,1763.2,1762.8,13.44448581]
[1745521282769,0.8007,1763.4,1763.0,5.67197695]
[1745521282971,0.8007,1763.4,1762.9,1.93028388]
[1745521282972,6.47173327,1763.4,1762.9,1.87356247]
[1745521283170,7.14846379,1763.4,1762.9,1.87356247]
[1745521283348,7.14846379,1763.4,1762.9,0.7979]
[1745521283663,0.8008,1763.3,1762.8,13.44445624]
[1745521283871,0.8008,1763.3,1762.8,13.44455548]
[1745521284542,6.47199716,1763.3,1762.8,13.44455548]
[1745521284940,7.75397325,1763.3,1762.8,13.44455548]
[1745521285369,0.29561127,1763.2,1762.8,13.44455548]
[1745521286466,0.29561127,1763.2,1762.8,7.77178153]
[1745521286646,0.29561127,1763.2,1762.9,1.94558388]
[1745521286846,0.29561127,1763.2,1762.9,7.61792676]
[1745521287152,0.29561127,1763.2,1762.9,9.72415939]
[1745521288284,0.29561127,1763.2,1763.0,11.34406513]
[1745521288492,0.29561127,1763.2,1763.0,5.67197517]
[1745521288703,0.29561127,1763.2,1763.0,5.67193127]
[1745521289457,0.29561127,1763.2,1762.9,15.33978599]
[1745521289659,0.29561127,1763.2,1763.0,1.5339786]
[1745521290265,0.29561127,1763.2,1763.1,1.07566247]
[1745521290471,0.29561127,1763.2,1763.1,7.61740328]
[1745521290698,0.29561127,1763.2,1763.1,7.7211167]
[1745521291057,0.29561127,1763.2,1763.1,7.66440392]
[1745521291351,0.29561127,1763.2,1763.1,9.1514539]
[1745521291894,0.29561127,1763.2,1763.1,9.20816233]
[1745521294093,0.29561127,1763.2,1763.1,9.1514539]
[1745521294974,0.29561127,1763.2,1763.1,0.10371342]
[1745521295190,0.29561127,1763.2,1763.1,6.85120392]
[1745521295397,0.29561127,1763.2,1763.1,7.62810392]
[1745521295708,0.29561127,1763.2,1763.1,7.68481422]
[1745521295911,0.29561127,1763.2,1763.1,7.62810392]
[1745521296064,0.29561127,1763.2,1763.1,8.95811237]
[1745521296265,0.29561127,1763.2,1763.1,9.01481803]
[1745521297098,0.29561127,1763.2,1763.1,8.95811237]
[1745521297394,0.29561127,1763.2,1763.1,12.01481547]
[1745521297597,0.29561127,1763.2,1763.1,11.95811237]
[1745521299964,0.29561127,1763.2,1763.1,12.38524412]
[1745521303820,0.29561127,1763.2,1763.1,7.8824499]
[1745521304027,0.29561127,1763.2,1763.1,0.10371342]
[1745521307084,1.09601127,1763.2,1763.1,0.10371342]
[1745521311630,0.29561127,1763.2,1763.1,0.10371342]
[1745521312825,1.08941127,1763.2,1763.1,0.10371342]
[1745521314726,0.29561127,1763.2,1763.1,0.10371342]
[1745521317327,1.10461127,1763.2,1763.1,0.10371342]
[1745521317535,1.78220791,1763.2,1763.0,4.961]
[1745521317905,1.10461127,1763.2,1763.0,4.961]
[1745521318532,6.77612801,1763.2,1763.0,4.961]
[1745521318719,6.44622803,1763.1,1763.0,4.961]
[1745521318949,6.44622803,1763.1,1762.7,4.962]
[1745521319310,0.7744,1763.1,1762.7,6.03766247]
[1745521319514,0.7744,1763.1,1762.8,0.60376625]
[1745521319515,0.29531915,1763.0,1762.8,0.60376625]
[1745521319741,0.29531915,1763.0,1762.7,4.962]
[1745521320445,0.29531915,1763.0,1762.7,11.71066754]
[1745521320619,0.29531915,1763.0,1762.7,11.71055301]
[1745521321119,0.29531915,1763.0,1762.9,6.74813396]
[1745521321520,0.29531915,1763.0,1762.9,6.8048492]
[1745521321726,0.29531915,1763.0,1762.9,8.07114423]
[1745521323993,0.29531915,1763.0,1762.9,8.88045942]
[1745521324343,0.29531915,1763.0,1762.9,8.82374423]
[1745521325393,0.29531915,1763.0,1762.9,1.32301027]
[1745521325684,0.29531915,1763.0,1762.8,5.67263076]
[1745521325685,0.29531915,1763.0,1762.8,5.6725817]
[1745521325851,0.29531915,1763.0,1762.9,5.67247149]
[1745521326077,0.29531915,1763.0,1762.9,5.72919012]
[1745521326392,0.29531915,1763.0,1762.9,6.74813396]
[1745521326755,0.29531915,1763.0,1762.9,7.54543396]
[1745521326956,0.29531915,1763.0,1762.9,8.86723533]
[1745521327187,0.29531915,1763.0,1762.9,8.92394828]
[1745521328495,0.29531915,1763.0,1762.9,8.86723533]
[1745521328795,0.29531915,1763.0,1762.9,8.97096052]
[1745521330992,0.29531915,1763.0,1762.9,9.39009104]
[1745521334098,0.29531915,1763.0,1762.9,8.97096052]
[1745521335676,0.29531915,1763.0,1762.9,8.17366052]